bitfinex-derivatives/quotes_SOLF0:USTF0_20251026
["timestamp","ask_amount","ask_price","bid_price","bid_amount"]
[1761493736023,4.55208109,199.5,199.38,2.81]
[1761493736228,8.12783304,199.49,199.38,2.81]
[1761493736528,8.12783304,199.48,199.38,2.81]
[1761493736734,8.12783304,199.47,199.38,2.81]
[1761493736929,8.12783304,199.46,199.38,2.81]
[1761493737129,4.55208109,199.45,199.38,2.81]
[1761493737327,4.55208109,199.5,199.38,2.81]
[1761493737529,8.12800804,199.49,199.38,2.81]
[1761493737829,8.12800804,199.48,199.38,2.81]
[1761493738029,8.12800804,199.47,199.38,2.81]
[1761493738224,8.12800804,199.46,199.38,2.81]
[1761493738423,4.55208109,199.45,199.38,2.81]
[1761493738635,4.55208109,199.5,199.38,2.81]
[1761493738835,8.12829129,199.49,199.38,2.81]
[1761493739137,8.12829129,199.48,199.38,2.81]
[1761493739339,8.12829129,199.47,199.38,2.81]
[1761493739635,4.55208109,199.46,199.38,2.81]
[1761493739938,4.55208109,199.5,199.38,2.81]
[1761493740238,8.13263093,199.49,199.38,2.81]
[1761493740432,3.58054984,199.48,199.38,2.81]
[1761493740637,4.54590573,199.47,199.38,2.81]
[1761493740837,4.54590573,199.5,199.38,2.81]
[1761493741038,8.12709677,199.49,199.38,2.81]
[1761493741237,8.12709677,199.48,199.38,2.81]
[1761493741437,8.12709677,199.47,199.38,2.81]
[1761493741641,8.12709677,199.46,199.38,2.81]
[1761493741847,4.54590573,199.45,199.38,2.81]
[1761493742042,4.54590573,199.5,199.38,2.81]
[1761493742237,4.65977101,199.51,199.38,2.81]
[1761493742238,8.12790396,199.49,199.38,2.81]
[1761493742444,8.12790396,199.48,199.38,2.81]
[1761493742638,8.12790396,199.47,199.38,2.81]
[1761493742944,8.12790396,199.46,199.38,2.81]
[1761493743143,4.54590573,199.45,199.38,2.81]
[1761493743348,4.54590573,199.5,199.38,2.81]
[1761493743535,8.13010254,199.49,199.38,2.81]
[1761493743741,8.13010254,199.48,199.38,2.81]
[1761493743941,8.13010254,199.47,199.38,2.81]
[1761493744141,8.13010254,199.46,199.38,2.81]
[1761493744337,8.13010254,199.45,199.38,2.81]
[1761493744538,4.54590573,199.44,199.38,2.81]
[1761493744748,4.54590573,199.48,199.38,2.81]
[1761493744952,8.13163289,199.47,199.38,2.81]
[1761493745153,8.13163289,199.46,199.38,2.81]
[1761493745352,8.13163289,199.45,199.38,2.81]
[1761493745552,8.13163289,199.44,199.38,2.81]
[1761493745755,4.54590573,199.43,199.38,2.81]
[1761493745951,4.54590573,199.48,199.38,2.81]
[1761493746252,8.13330235,199.47,199.38,2.81]
[1761493746453,8.13330235,199.46,199.38,2.81]
[1761493746652,8.13330235,199.45,199.38,2.81]
[1761493746852,4.54590573,199.44,199.38,2.81]
[1761493747046,4.54590573,199.43,199.38,2.81]
[1761493747246,4.54590573,199.48,199.38,2.81]
[1761493747447,8.13465864,199.47,199.38,2.81]
[1761493747753,8.13465864,199.46,199.38,2.81]
[1761493747953,8.13465864,199.45,199.38,2.81]
[1761493748155,8.13465864,199.44,199.38,2.81]
[1761493748354,4.54590573,199.43,199.38,2.81]
[1761493748555,4.54590573,199.48,199.38,2.81]
[1761493748757,8.13560564,199.47,199.38,2.81]
[1761493748950,8.13560564,199.46,199.38,2.81]
[1761493749144,8.13560564,199.45,199.38,2.81]
[1761493749350,8.13560564,199.44,199.38,2.81]
[1761493749556,4.54590573,199.43,199.38,2.81]
[1761493749754,4.54590573,199.42,199.38,2.81]
[1761493749957,4.54590573,199.48,199.38,2.81]
[1761493750153,8.13605447,199.47,199.38,2.81]
[1761493750453,8.13605447,199.46,199.38,2.81]
[1761493750653,8.13605447,199.45,199.38,2.81]
[1761493750856,8.13605447,199.44,199.38,2.81]
[1761493751058,4.54590573,199.43,199.38,2.81]
[1761493751255,4.54590573,199.42,199.38,2.81]
[1761493751453,4.54590573,199.47,199.38,2.81]
[1761493751653,8.13693821,199.46,199.38,2.81]
[1761493751857,8.13693821,199.45,199.38,2.81]
[1761493752055,8.13693821,199.44,199.38,2.81]
[1761493752256,4.54590573,199.43,199.38,2.81]
[1761493752556,4.54590573,199.42,199.38,2.81]
[1761493752856,4.54590573,199.47,199.38,2.81]
[1761493753054,8.13735648,199.46,199.38,2.81]
[1761493753254,8.13735648,199.45,199.38,2.81]
[1761493753458,8.13735648,199.44,199.38,2.81]
[1761493753756,4.54590573,199.43,199.38,2.81]
[1761493753957,4.54590573,199.42,199.38,2.81]
[1761493754154,4.54590573,199.47,199.38,2.81]
[1761493754457,8.13831465,199.46,199.38,2.81]
[1761493754654,8.13831465,199.45,199.38,2.81]
[1761493754852,8.13831465,199.44,199.38,2.81]
[1761493755053,4.54590573,199.43,199.38,2.81]
[1761493755252,4.54590573,199.42,199.38,2.81]
[1761493755458,4.54590573,199.41,199.38,2.81]
[1761493755657,4.54590573,199.47,199.38,2.81]
[1761493755958,8.13899758,199.46,199.38,2.81]
[1761493756155,8.13899758,199.45,199.38,2.81]
[1761493756355,8.13899758,199.44,199.38,2.81]
[1761493756557,8.13899758,199.43,199.38,2.81]
[1761493756756,4.54590573,199.42,199.38,2.81]
[1761493756959,4.54590573,199.41,199.38,2.81]
[1761493757258,4.68974833,199.48,199.38,2.81]
[1761493757456,8.16121639,199.47,199.38,2.81]
[1761493757658,8.16121639,199.46,199.38,2.81]
[1761493757958,8.16121639,199.45,199.38,2.81]
[1761493758160,8.16121639,199.44,199.38,2.81]
[1761493758359,8.16121639,199.43,199.38,2.81]
[1761493758558,4.56696692,199.42,199.38,2.81]
[1761493758757,4.56696692,199.41,199.38,2.81]
[1761493758960,4.68974833,199.48,199.38,2.81]
[1761493759261,12.85254949,199.47,199.38,2.81]
[1761493759462,8.16280116,199.46,199.38,2.81]
[1761493759662,8.16280116,199.45,199.38,2.81]
[1761493759855,8.16280116,199.44,199.38,2.81]
[1761493760051,8.16280116,199.43,199.38,2.81]
[1761493760264,4.5678556,199.42,199.38,2.81]
[1761493760458,4.5678556,199.41,199.38,2.81]
[1761493760658,4.5678556,199.4,199.38,2.81]
[1761493760964,4.68974833,199.47,199.38,2.81]
[1761493761263,8.16653918,199.46,199.38,2.81]
[1761493761462,8.16653918,199.45,199.38,2.81]
[1761493761656,8.16653918,199.44,199.38,2.81]
[1761493761856,8.16653918,199.43,199.38,2.81]
[1761493762062,8.16653918,199.42,199.38,2.81]
[1761493762263,4.56996552,199.41,199.38,2.81]
[1761493762558,4.56996552,199.4,199.38,2.81]
[1761493762863,4.68974833,199.46,199.38,2.81]
[1761493763066,8.1723209,199.45,199.38,2.81]
[1761493763366,8.1723209,199.44,199.38,2.81]
[1761493763665,8.1723209,199.43,199.38,2.81]
[1761493763861,8.1723209,199.42,199.38,2.81]
[1761493764060,4.5732113,199.41,199.38,2.81]
[1761493764261,9.26295963,199.46,199.38,2.81]
[1761493764559,8.17276422,199.45,199.38,2.81]
[1761493764757,8.17276422,199.44,199.38,2.81]
[1761493765059,8.17276422,199.43,199.38,2.81]
[1761493765363,8.17276422,199.42,199.38,2.81]
[1761493765562,4.44082072,199.41,199.38,2.81]
[1761493765764,4.44082072,199.45,199.38,2.81]
[1761493765954,8.04061214,199.44,199.38,2.81]
[1761493766159,8.04061214,199.43,199.38,2.81]
[1761493766359,8.04061214,199.42,199.38,2.81]
[1761493766565,4.44082072,199.41,199.38,2.81]
[1761493766866,4.44082072,199.45,199.38,2.81]
[1761493767065,8.04067731,199.44,199.38,2.81]
[1761493767254,8.04067731,199.43,199.38,2.81]
[1761493767458,8.04067731,199.42,199.38,2.81]
[1761493767659,4.44082072,199.41,199.38,2.81]
[1761493767862,4.44082072,199.45,199.38,2.81]
[1761493768064,8.04075057,199.44,199.38,2.81]
[1761493768265,8.04075057,199.43,199.38,2.81]
[1761493768463,8.04075057,199.42,199.38,2.81]
[1761493768670,4.44082072,199.41,199.38,2.81]
[1761493768966,4.44082072,199.45,199.38,2.81]
[1761493769161,8.04083285,199.44,199.38,2.81]
[1761493769358,8.04083285,199.43,199.38,2.81]
[1761493769558,8.04083285,199.42,199.38,2.81]
[1761493769762,4.44082072,199.41,199.38,2.81]
[1761493769963,4.44082072,199.45,199.38,2.81]
[1761493770162,8.0469926,199.44,199.38,2.81]
[1761493770366,8.0469926,199.43,199.38,2.81]
[1761493770567,8.0469926,199.42,199.38,2.81]
[1761493770758,4.44082072,199.41,199.38,2.81]
[1761493770957,4.68974833,199.46,199.38,2.81]
[1761493771161,8.04758861,199.45,199.38,2.81]
[1761493771361,8.04758861,199.44,199.38,2.81]
[1761493771558,8.04758861,199.43,199.34,2.63]
[1761493771771,12.73733694,199.42,199.34,2.63]
[1761493771970,4.68974833,199.4,199.29,2.63]
[1761493772167,4.68974833,199.37,199.29,2.63]
[1761493772370,8.04758861,199.36,199.29,2.63]
[1761493772671,8.04758861,199.35,199.29,2.63]
[1761493772965,8.04758861,199.34,199.29,2.63]
[1761493773170,4.68974833,199.38,199.29,2.63]
[1761493773470,8.11275458,199.37,199.29,2.63]
[1761493773659,8.11275458,199.36,199.29,2.63]
[1761493773862,8.11275458,199.35,199.29,2.63]
[1761493774063,8.11275458,199.34,199.29,2.63]
[1761493774261,4.68974833,199.39,199.29,2.63]
[1761493774470,8.08475337,199.38,199.29,2.63]
[1761493774669,8.08475337,199.37,199.29,2.63]
[1761493774860,8.08475337,199.36,199.29,2.63]
[1761493775063,8.08475337,199.35,199.29,2.63]
[1761493775261,4.41397802,199.34,199.29,2.63]
[1761493775464,8.08283984,199.38,199.29,2.63]
[1761493775673,8.08283984,199.37,199.29,2.63]
[1761493775872,8.08283984,199.36,199.29,2.63]
[1761493776076,8.08283984,199.35,199.29,2.63]
[1761493776275,4.68974833,199.39,199.29,2.63]
[1761493776468,8.0773418,199.38,199.29,2.63]
[1761493776668,8.0773418,199.37,199.29,2.63]
[1761493776868,8.0773418,199.36,199.29,2.63]
[1761493777169,8.0773418,199.35,199.29,2.63]
[1761493777465,4.68974833,199.4,199.29,2.63]
[1761493777667,8.07440104,199.39,199.29,2.63]
[1761493777868,3.66599613,199.38,199.29,2.63]
[1761493778470,8.07440104,199.39,199.29,2.63]
[1761493781480,3.66599613,199.38,199.29,2.63]
[1761493781681,8.07440104,199.39,199.29,2.63]
[1761493782680,8.07440104,199.38,199.29,2.63]
[1761493782880,8.07440104,199.37,199.29,2.63]
[1761493783181,8.07440104,199.36,199.29,2.63]
[1761493783372,4.68974833,199.41,199.29,2.63]
[1761493783671,3.66037018,199.4,199.29,2.63]
[1761493784073,8.06202206,199.4,199.29,2.63]
[1761493784473,3.66037018,199.39,199.29,2.63]
[1761493784674,4.40165188,199.4,199.29,2.63]
[1761493784879,12.75177039,199.41,199.29,2.63]
[1761493785078,8.06202206,199.4,199.29,2.63]
[1761493785279,3.66037018,199.39,199.29,2.63]
[1761493785472,4.40165188,199.4,199.29,2.63]
[1761493785672,8.35011851,199.39,199.25,2.6]
[1761493785874,12.75177039,199.38,199.25,2.6]
[1761493786179,8.06202206,199.37,199.25,2.6]
[1761493786379,3.66037018,199.36,199.25,2.6]
[1761493786580,8.06202206,199.37,199.25,2.6]
[1761493787777,12.75177039,199.37,199.25,2.6]
[1761493787977,8.06202206,199.36,199.25,2.6]
[1761493788575,8.06202206,199.35,199.25,2.6]
[1761493788776,8.06202206,199.34,199.25,2.6]
[1761493788978,8.06202206,199.33,199.25,2.6]
[1761493789179,4.68974833,199.37,199.25,2.6]
[1761493789779,12.74373245,199.37,199.25,2.6]
[1761493789979,8.05398412,199.36,199.25,2.6]
[1761493790180,3.65669376,199.35,199.25,2.6]
[1761493790888,8.05398412,199.37,199.25,2.6]
[1761493793588,8.05398412,199.36,199.25,2.6]
[1761493793789,8.05398412,199.35,199.25,2.6]
[1761493794088,8.05398412,199.34,199.25,2.6]
[1761493794287,4.68974833,199.39,199.25,2.6]
[1761493794685,12.73394233,199.39,199.25,2.6]
[1761493794885,8.044194,199.38,199.25,2.6]
[1761493795086,3.65215899,199.37,199.25,2.6]
[1761493795488,4.39203501,199.38,199.25,2.6]
[1761493795791,9.08178334,199.39,199.25,2.6]
[1761493801098,4.68974833,199.39,199.25,2.6]
[1761493801498,9.08114372,199.39,199.25,2.6]
[1761493802397,8.34190732,199.38,199.25,2.6]
[1761493802599,4.39139539,199.37,199.25,2.6]
[1761493802792,8.04355438,199.37,199.25,2.6]
[1761493802992,8.04355438,199.36,199.25,2.6]
[1761493803197,8.04355438,199.35,199.25,2.6]
[1761493803398,3.65215899,199.34,199.25,2.6]
[1761493803599,4.39245461,199.38,199.25,2.6]
[1761493804101,9.08220294,199.39,199.25,2.6]
[1761493804301,4.39245461,199.38,199.25,2.6]
[1761493804502,9.08220294,199.39,199.25,2.6]
[1761493806198,9.08220294,199.39,199.25,4.5166]
[1761493806401,4.68974833,199.39,199.26,2.68]
[1761493806600,9.08318933,199.39,199.26,2.68]
[1761493806795,8.04559999,199.38,199.26,2.68]
[1761493806997,3.65215899,199.37,199.26,2.68]
[1761493807706,4.393441,199.38,199.26,2.68]
[1761493807907,4.68974833,199.39,199.26,2.68]
[1761493808102,9.08318933,199.39,199.26,2.68]
[1761493808303,8.04559999,199.38,199.26,2.68]
[1761493808605,3.65215899,199.37,199.26,2.68]
[1761493808801,4.393441,199.38,199.26,2.68]
[1761493809007,8.04559999,199.38,199.26,2.68]
[1761493809208,3.65215899,199.37,199.26,2.68]
[1761493809510,4.393441,199.38,199.26,2.68]
[1761493809704,4.68974833,199.39,199.26,2.68]
[1761493810008,9.08318933,199.39,199.26,2.68]
[1761493810203,8.04559999,199.38,199.26,2.68]
[1761493810404,3.65215899,199.37,199.26,2.68]
[1761493810601,4.393441,199.38,199.26,2.68]
[1761493810808,12.73534832,199.39,199.26,2.68]
[1761493811106,8.04559999,199.38,199.26,2.68]
[1761493811301,3.65215899,199.37,199.26,2.68]
[1761493811501,8.04559999,199.38,199.26,2.68]
[1761493812411,8.04559999,199.38,199.27,2.74]
[1761493812611,3.65215899,199.37,199.27,2.74]
[1761493812911,8.04559999,199.38,199.32,2.74]
[1761493813099,4.68974833,199.42,199.32,2.74]
[1761493813304,8.07629477,199.41,199.32,2.74]
[1761493813603,3.67524182,199.4,199.32,2.74]
[1761493813809,8.07629477,199.4,199.33,2.74]
[1761493814010,8.07629477,199.39,199.33,2.74]
[1761493814211,3.67524182,199.38,199.33,2.74]
[1761493814399,8.08046368,199.42,199.33,2.74]
[1761493814603,3.67524182,199.41,199.33,2.74]
[1761493815299,3.67524182,199.4,199.33,2.74]
[1761493816311,3.67524182,199.39,199.33,2.74]
[1761493816507,3.67524182,199.39,199.34,2.74]
[1761493816813,8.08046368,199.4,199.34,2.74]
[1761493817007,8.08046368,199.39,199.34,2.74]
[1761493817313,8.08046368,199.38,199.34,2.74]
[1761493817509,4.68974833,199.43,199.34,2.74]
[1761493817706,8.09242106,199.42,199.34,2.74]
[1761493817904,8.09242106,199.41,199.34,2.74]
[1761493818106,8.09242106,199.4,199.35,2.74]
[1761493818305,8.09242106,199.39,199.35,2.74]
[1761493818502,3.68263883,199.38,199.35,2.74]
[1761493818706,8.09161715,199.42,199.35,2.74]
[1761493819012,8.09161715,199.41,199.35,2.74]
[1761493819207,8.09161715,199.4,199.35,2.74]
[1761493819411,8.09161715,199.39,199.35,2.74]
[1761493819615,3.68263883,199.38,199.35,2.74]
[1761493819913,12.78075647,199.42,199.35,2.74]
[1761493820114,8.09100814,199.41,199.35,2.74]
[1761493820314,3.68263883,199.4,199.35,2.74]
[1761493820618,8.09100814,199.41,199.35,2.74]
[1761493820808,8.09100814,199.4,199.35,2.74]
[1761493821008,8.09100814,199.39,199.35,2.74]
[1761493821207,3.68263883,199.38,199.35,2.74]
[1761493821507,8.08987274,199.42,199.35,2.74]
[1761493821708,8.08987274,199.41,199.35,2.74]
[1761493821908,8.08987274,199.4,199.35,2.74]
[1761493822113,4.68974833,199.43,199.35,2.74]
[1761493822114,8.08987274,199.39,199.35,2.74]
[1761493822315,4.68974833,199.43,199.35,2.74]
[1761493822517,8.0862261,199.42,199.35,2.74]
[1761493822814,3.67985589,199.41,199.35,2.74]
[1761493823214,8.0862261,199.42,199.35,2.74]
[1761493825215,3.67890678,199.41,199.35,2.74]
[1761493825419,8.08527699,199.42,199.35,2.74]
[1761493825715,8.08527699,199.41,199.35,2.74]
[1761493825916,8.08527699,199.4,199.35,2.74]
[1761493826118,8.08527699,199.39,199.35,2.74]
[1761493826312,4.68014318,199.44,199.35,2.74]
[1761493826511,8.08206778,199.43,199.35,2.74]
[1761493826712,3.67795572,199.42,199.35,2.74]
[1761493827421,8.08206778,199.43,199.35,2.74]
[1761493829324,4.40411206,199.42,199.35,2.74]
[1761493829525,4.40411206,199.45,199.35,2.74]
[1761493829715,4.40411206,199.44,199.35,2.74]
[1761493830019,4.40411206,199.45,199.35,2.74]
[1761493830220,4.40411206,199.44,199.35,2.74]
[1761493830420,4.40411206,199.45,199.36,2.74]
[1761493830622,4.40411206,199.48,199.36,2.74]
[1761493830816,4.6763413,199.45,199.36,2.74]
[1761493832029,8.08005021,199.46,199.36,2.74]
[1761493832425,4.40411206,199.45,199.36,2.74]
[1761493832625,4.40411206,199.49,199.36,2.74]
[1761493832826,4.40411206,199.49,199.37,2.74]
[1761493833025,8.24371671,199.52,199.37,2.74]
[1761493833225,4.40411206,199.51,199.37,2.74]
[1761493833426,4.40411206,199.5,199.37,2.74]
[1761493833627,4.40411206,199.49,199.37,2.74]
[1761493833825,4.40411206,199.48,199.37,2.74]
[1761493834029,3.67558597,199.47,199.37,2.74]
[1761493834230,4.67606634,199.45,199.26,2.74]
[1761493834425,8.35165231,199.44,199.26,2.74]
[1761493834627,12.75576437,199.43,199.31,7.2554]
[1761493834932,12.75576437,199.42,199.31,2.74]
[1761493835134,8.07969803,199.41,199.31,2.74]
[1761493835331,3.67558597,199.4,199.31,2.74]
[1761493835527,8.07969803,199.4,199.31,2.74]
[1761493835726,3.67558597,199.39,199.31,2.74]
[1761493835920,8.04893288,199.42,199.31,2.74]
[1761493836930,8.04893288,199.42,199.31,7.2553]
[1761493837137,8.04893288,199.42,199.32,2.74]
[1761493837436,4.37400958,199.41,199.32,2.74]
[1761493837623,8.04959555,199.42,199.32,2.74]
[1761493841841,8.35165231,199.41,199.32,2.74]
[1761493842138,8.04959555,199.4,199.32,2.74]
[1761493844241,3.67558597,199.39,199.32,2.74]
[1761493847441,3.67558597,199.38,199.32,2.74]
[1761493847740,8.04959555,199.39,199.32,2.74]
[1761493847942,3.67558597,199.38,199.32,2.74]
[1761493850243,3.67558597,199.37,199.32,2.74]
[1761493850444,3.67558597,199.38,199.32,2.74]
[1761493850634,3.67558597,199.37,199.32,2.74]
[1761493850838,3.67558597,199.38,199.32,2.74]
[1761493851044,3.67558597,199.37,199.32,2.74]
[1761493851239,3.67558597,199.36,199.32,2.74]
[1761493851439,3.67558597,199.37,199.32,2.74]
[1761493852236,4.37400958,199.39,199.32,2.74]
[1761493852237,3.67558597,199.38,199.32,2.74]
[1761493852546,3.67558597,199.37,199.32,2.74]
[1761493852844,3.67558597,199.38,199.32,2.74]
[1761493853033,3.67558597,199.37,199.32,2.74]
[1761493853233,3.67558597,199.36,199.32,2.74]
[1761493853437,3.67558597,199.37,199.32,2.74]
[1761493853637,3.67558597,199.36,199.32,2.74]
[1761493853941,3.67558597,199.37,199.32,2.74]
[1761493854343,3.67558597,199.36,199.32,2.74]
[1761493854545,8.04959555,199.38,199.32,2.74]
[1761493854745,4.67606634,199.4,199.32,2.74]
[1761493854746,8.04959555,199.37,199.32,2.74]
[1761493854946,8.04959555,199.36,199.32,2.74]
[1761493855150,3.67558597,199.35,199.32,2.74]
[1761493855343,12.73867596,199.39,199.32,2.74]
[1761493855648,8.06260962,199.38,199.32,2.74]
[1761493855845,3.67558597,199.37,199.32,2.74]
[1761493856046,3.67558597,199.36,199.32,2.74]
[1761493856347,3.67558597,199.37,199.32,2.74]
[1761493856547,3.67558597,199.36,199.32,2.74]
[1761493856744,3.67558597,199.37,199.32,2.74]
[1761493856941,3.67558597,199.36,199.32,2.74]
[1761493857142,3.67558597,199.37,199.32,2.74]
[1761493857342,3.67558597,199.36,199.32,2.74]
[1761493857547,3.67558597,199.35,199.32,2.74]
[1761493857750,3.67558597,199.37,199.32,2.74]
[1761493857944,3.67558597,199.36,199.32,2.74]
[1761493858148,3.67558597,199.35,199.32,2.74]
[1761493858344,3.67558597,199.37,199.32,2.74]
[1761493858648,3.67558597,199.36,199.32,2.74]
[1761493858848,3.67558597,199.35,199.32,2.74]
[1761493859042,3.67558597,199.37,199.32,2.74]
[1761493859248,3.67558597,199.36,199.32,2.74]
[1761493859446,3.67558597,199.35,199.32,2.74]
[1761493859646,3.67558597,199.37,199.32,2.74]
[1761493859856,3.67558597,199.36,199.32,2.74]
[1761493860148,3.67558597,199.35,199.32,2.74]
[1761493860350,3.67558597,199.37,199.32,2.74]
[1761493860649,3.67558597,199.36,199.32,2.74]
[1761493860855,3.67558597,199.35,199.32,2.74]
[1761493861040,3.67558597,199.37,199.32,2.74]
[1761493861343,3.67558597,199.36,199.32,2.74]
[1761493861544,3.67558597,199.35,199.32,2.74]
[1761493861745,3.67558597,199.37,199.32,2.74]
[1761493861953,3.67558597,199.36,199.32,2.74]
[1761493862152,3.67558597,199.37,199.32,2.74]
[1761493862352,3.67558597,199.36,199.32,2.74]
[1761493862552,3.67558597,199.38,199.32,2.74]
[1761493862754,3.67558597,199.37,199.32,2.74]
[1761493862953,3.67558597,199.36,199.32,2.74]
[1761493863154,3.67558597,199.38,199.32,2.74]
[1761493863355,3.67558597,199.37,199.32,2.74]
[1761493863651,3.67558597,199.36,199.32,2.74]
[1761493863851,3.67558597,199.38,199.32,2.74]
[1761493864054,3.67558597,199.37,199.32,2.74]
[1761493864249,3.67558597,199.36,199.33,2.63]
[1761493864446,3.67558597,199.38,199.33,2.63]
[1761493864643,3.67558597,199.37,199.33,2.63]
[1761493864846,3.67558597,199.36,199.33,2.63]
[1761493865047,4.38702365,199.39,199.33,2.63]
[1761493865048,3.67558597,199.38,199.33,2.63]
[1761493865250,3.67558597,199.37,199.33,2.63]
[1761493865557,4.38702365,199.39,199.33,2.63]
[1761493865558,3.67558597,199.38,199.33,2.63]
[1761493865756,3.67558597,199.37,199.33,2.63]
[1761493865957,7.9280879,199.4,199.33,2.63]
[1761493866153,3.67558597,199.39,199.33,2.63]
[1761493866354,3.67558597,199.38,199.33,2.63]
[1761493866554,3.67558597,199.37,199.33,2.63]
[1761493866752,3.67558597,199.39,199.33,2.63]
[1761493866956,3.67558597,199.38,199.33,2.63]
[1761493867155,3.67558597,199.37,199.33,2.63]
[1761493867458,3.67558597,199.39,199.33,2.63]
[1761493867758,3.67558597,199.38,199.33,2.63]
[1761493867958,3.67558597,199.37,199.33,2.63]
[1761493868160,3.67558597,199.39,199.33,2.63]
[1761493868359,3.67558597,199.38,199.33,2.63]
[1761493868561,3.67558597,199.37,199.33,2.63]
[1761493868762,3.67558597,199.39,199.33,2.63]
[1761493869060,3.67558597,199.38,199.33,2.63]
[1761493869261,3.67558597,199.37,199.33,2.63]
[1761493869461,3.67558597,199.39,199.33,2.63]
[1761493869661,3.67558597,199.38,199.33,2.63]
[1761493869861,3.67558597,199.37,199.33,2.63]
[1761493870163,3.67558597,199.39,199.33,2.63]
[1761493870463,3.67558597,199.38,199.33,2.63]
[1761493870656,3.67558597,199.37,199.33,2.63]
[1761493870856,7.9280879,199.39,199.33,2.63]
[1761493871055,3.67558597,199.38,199.33,2.63]
[1761493871251,3.67558597,199.37,199.33,2.63]
[1761493871456,3.67558597,199.36,199.33,2.63]
[1761493871657,3.67558597,199.38,199.33,2.63]
[1761493871954,3.67558597,199.37,199.33,2.63]
[1761493872260,3.67558597,199.36,199.33,2.63]
[1761493872456,3.67558597,199.38,199.33,2.63]
[1761493872662,3.67558597,199.37,199.33,2.63]
[1761493872862,3.67558597,199.36,199.33,2.63]
[1761493873060,3.67558597,199.38,199.33,2.63]
[1761493873265,3.67558597,199.37,199.33,2.63]
[1761493873459,3.67558597,199.36,199.33,2.63]
[1761493873659,3.67558597,199.38,199.33,2.63]
[1761493873962,3.67558597,199.37,199.33,2.63]
[1761493874263,3.67558597,199.36,199.33,2.63]
[1761493874462,3.67558597,199.38,199.33,2.63]
[1761493874662,3.67558597,199.37,199.33,2.63]
[1761493874864,3.67558597,199.36,199.33,2.63]
[1761493875063,3.67558597,199.38,199.33,2.63]
[1761493875361,3.67558597,199.37,199.33,2.63]
[1761493875559,3.67558597,199.36,199.33,2.63]
[1761493875760,3.67558597,199.38,199.33,2.63]
[1761493876062,3.67558597,199.37,199.33,2.63]
[1761493876254,3.67558597,199.36,199.33,2.63]
[1761493876455,3.67558597,199.38,199.33,2.63]
[1761493876656,3.67558597,199.37,199.33,2.63]
[1761493876856,3.67558597,199.36,199.33,2.63]
[1761493877064,3.67558597,199.38,199.33,2.63]
[1761493877363,3.67558597,199.37,199.33,2.63]
[1761493877565,3.67558597,199.36,199.33,2.63]
[1761493877759,3.67558597,199.38,199.33,2.63]
[1761493877959,3.67558597,199.37,199.33,2.63]
[1761493878163,4.25250193,199.39,199.33,2.63]
[1761493878164,3.67558597,199.36,199.33,2.63]
[1761493878366,3.67558597,199.38,199.33,2.63]
[1761493878566,3.67558597,199.37,199.33,2.63]
[1761493878862,3.67558597,199.36,199.33,2.63]
[1761493879062,3.67558597,199.35,199.33,2.63]
[1761493879266,3.67558597,199.38,199.33,2.63]
[1761493879562,3.67558597,199.37,199.33,2.63]
[1761493879761,3.67558597,199.36,199.33,2.63]
[1761493879963,3.67558597,199.35,199.33,2.63]
[1761493880163,3.67558597,199.38,199.33,2.63]
[1761493880365,3.67558597,199.37,199.33,2.63]
[1761493880567,3.67558597,199.36,199.33,2.63]
[1761493880767,3.67558597,199.35,199.33,2.63]